bitfinex-derivatives/quotes_SOLF0:USTF0_20250905
["timestamp","ask_amount","ask_price","bid_price","bid_amount"]
[1757097016815,13.15430729,203.19,203.13,7.62]
[1757097019110,7.66,203.19,203.13,7.62]
[1757097019313,5.49430729,203.21,203.13,7.62]
[1757097019618,5.49430729,203.21,203.15,3.39340339]
[1757097019817,13.15430729,203.22,203.16,7.88]
[1757097020320,13.15430729,203.22,203.18,3.39340339]
[1757097020515,4.25019804,203.29,203.18,3.39340339]
[1757097020516,5.49430729,203.23,203.18,3.39340339]
[1757097020716,5.49430729,203.24,203.19,7.88]
[1757097021016,5.49430729,203.24,203.18,3.39340339]
[1757097021212,7.66,203.26,203.18,3.39340339]
[1757097021213,5.49430729,203.25,203.19,7.88]
[1757097021413,13.15430729,203.26,203.22,7.88]
[1757097021713,7.66,203.26,203.21,3.39340339]
[1757097022109,7.66,203.26,203.22,7.88]
[1757097022512,7.66,203.26,203.21,3.39340339]
[1757097022715,7.66,203.26,203.22,7.88]
[1757097023315,13.15430729,203.26,203.19,7.88]
[1757097024923,16.54771068,203.26,203.15,3.39340339]
[1757097025123,7.66,203.24,203.14,7.88]
[1757097025618,7.66,203.24,203.04,68.9461]
[1757097025619,3.39340339,203.2,203.08,3.39340339]
[1757097025827,7.66,203.19,203.09,7.88]
[1757097026223,11.05340339,203.19,203.09,7.88]
[1757097026420,7.66,203.19,203.1,3.39340339]
[1757097026619,7.66,203.19,203.11,7.88]
[1757097027021,7.66,203.23,203.13,3.39340339]
[1757097027220,7.66,203.23,203.17,7.88]
[1757097031527,3.39340339,203.19,203.13,7.88]
[1757097031734,7.66,203.18,203.09,7.88]
[1757097033934,7.66,203.21,203.12,7.88]
[1757097034432,7.66,203.21,203.14,7.88]
[1757097038334,7.66,203.21,203.14,11.27340339]
[1757097042035,7.66,203.21,203.14,7.88]
[1757097043542,7.66,203.21,203.12,3.39340339]
[1757097044038,13.15430729,203.21,203.12,3.39340339]
[1757097044239,7.66,203.21,203.12,3.39340339]
[1757097044429,7.66,203.21,203.13,7.88]
[1757097045327,7.98821993,203.26,203.12,3.39340339]
[1757097045328,13.15430729,203.24,203.16,7.88]
[1757097045528,7.66,203.24,203.16,7.88]
[1757097045733,7.66,203.24,203.19,7.88]
[1757097046131,13.15430729,203.27,203.19,7.88]
[1757097046630,13.15430729,203.27,203.19,11.27340339]
[1757097047033,7.66,203.27,203.19,11.27340339]
[1757097049040,7.66,203.27,203.19,7.88]
[1757097054147,13.15430729,203.27,203.19,7.88]
[1757097054347,18.09730729,203.27,203.19,7.88]
[1757097055147,13.15430729,203.27,203.19,7.88]
[1757097056350,18.09730729,203.27,203.19,7.88]
[1757097057250,18.09730729,203.27,203.19,11.27340339]
[1757097060149,3.39340339,203.3,203.09,8.12]
[1757097060150,12.593,203.22,203.09,8.12]
[1757097060349,12.593,203.22,203.1,3.39340339]
[1757097060553,12.593,203.22,203.13,3.39340339]
[1757097060554,7.65,203.22,203.13,3.39340339]
[1757097060753,4.943,203.25,203.17,8.12]
[1757097061052,7.65,203.26,203.19,3.39340339]
[1757097061248,7.65,203.26,203.19,11.51340339]
[1757097062452,7.65,203.26,203.19,8.12]
[1757097062648,12.593,203.26,203.19,8.12]
[1757097062855,18.08730729,203.26,203.19,8.12]
[1757097063247,13.14430729,203.26,203.19,8.12]
[1757097063445,7.65,203.26,203.19,8.12]
[1757097065052,13.14430729,203.26,203.19,8.12]
[1757097065453,7.65,203.26,203.19,8.12]
[1757097066258,18.08730729,203.26,203.19,8.12]
[1757097066759,5.49430729,203.25,203.19,8.12]
[1757097068358,12.593,203.26,203.19,8.12]
[1757097068359,18.08730729,203.26,203.19,8.12]
[1757097068556,5.49430729,203.25,203.19,8.12]
[1757097068761,18.08730729,203.26,203.19,8.12]
[1757097072062,7.65,203.24,203.19,8.12]
[1757097072463,4.943,203.25,203.19,8.12]
[1757097072663,7.65,203.23,203.19,8.12]
[1757097073464,10.43730729,203.25,203.19,8.12]
[1757097073663,7.65,203.24,203.19,8.12]
[1757097073869,7.65,203.23,203.19,8.12]
[1757097074058,7.65,203.23,203.16,8.12]
[1757097075466,9.82103556,203.23,203.17,2.17103556]
[1757097075661,9.82103556,203.23,203.16,8.12]
[1757097075964,9.82103556,203.23,203.17,2.17103556]
[1757097077060,7.65,203.23,203.17,2.17103556]
[1757097079664,7.65,203.23,203.2,8.15]
[1757097080364,2.17103556,203.24,203.2,8.15]
[1757097080559,7.66,203.23,203.2,8.15]
[1757097081166,7.66,203.24,203.19,2.17103556]
[1757097081363,12.603,203.2,203.11,2.17103556]
[1757097081565,9.83103556,203.18,203.11,2.17103556]
[1757097082266,7.66,203.15,203.11,2.17103556]
[1757097082666,7.66,203.15,203.12,8.15]
[1757097083262,2.17103556,203.16,203.06,8.15]
[1757097083463,7.66,203.15,203.09,2.17103556]
[1757097084264,7.66,203.15,203.09,10.32103556]
[1757097084564,7.66,203.15,203.11,2.17103556]
[1757097084767,7.66,203.15,203.12,8.15]
[1757097084965,2.17103556,203.18,203.11,10.32103556]
[1757097085162,7.11403556,203.18,203.11,10.32103556]
[1757097085358,7.66,203.17,203.14,8.15]
[1757097085662,4.943,203.2,203.15,2.17103556]
[1757097085872,7.66534285,203.25,203.19,2.17103556]
[1757097086057,7.66,203.25,203.19,2.17103556]
[1757097086462,7.66,203.25,203.17,8.15]
[1757097086661,7.66,203.26,203.2,2.17103556]
[1757097087064,7.66,203.26,203.17,8.15]
[1757097087263,7.66,203.26,203.22,2.17103556]
[1757097087469,7.66,203.26,203.22,10.32103556]
[1757097088071,7.66,203.26,203.23,8.15]
[1757097088367,5.49430729,203.3,203.24,2.17103556]
[1757097088663,7.66,203.3,203.26,10.32103556]
[1757097088864,13.15430729,203.32,203.26,2.17103556]
[1757097089067,13.15430729,203.32,203.25,2.17103556]
[1757097089068,15.32534285,203.32,203.25,2.17103556]
[1757097090369,5.49430729,203.31,203.25,8.15]
[1757097090562,5.49430729,203.34,203.25,8.15]
[1757097090769,13.15430729,203.34,203.28,2.17103556]
[1757097091171,13.15430729,203.34,203.27,8.15]
[1757097091369,7.66,203.33,203.29,2.17103556]
[1757097092262,7.66,203.33,203.27,8.15]
[1757097092462,7.66,203.33,203.29,2.17103556]
[1757097092864,7.66,203.33,203.27,8.15]
[1757097093063,7.66,203.33,203.29,2.17103556]
[1757097093474,7.66,203.34,203.2,8.15]
[1757097093675,7.66,203.32,203.25,2.17103556]
[1757097094371,2.17103556,203.31,203.25,2.17103556]
[1757097095374,7.66,203.3,203.24,2.17103556]
[1757097095970,2.17103556,203.25,203.15,8.15]
[1757097096166,7.66,203.24,203.18,2.17103556]
[1757097096366,7.66,203.24,203.08,68.9336]
[1757097096367,7.66,203.24,203.2,10.32103556]
[1757097097070,9.83103556,203.28,203.22,2.17103556]
[1757097097267,9.83103556,203.28,203.2,2.17103556]
[1757097097475,7.66,203.28,203.24,2.17103556]
[1757097097973,7.66,203.28,203.24,10.32103556]
[1757097098776,7.66,203.28,203.24,8.15]
[1757097099374,7.66,203.28,203.24,10.32103556]
[1757097099873,7.66,203.28,203.24,8.15]
[1757097100976,9.83103556,203.3,203.23,2.17103556]
[1757097101478,7.66,203.27,203.21,2.17103556]
[1757097101876,2.17103556,203.26,203.19,2.17103556]
[1757097102077,2.17103556,203.24,203.18,8.15]
[1757097102472,9.83103556,203.25,203.2,8.15]
[1757097103374,7.66,203.27,203.21,10.32103556]
[1757097103672,7.66,203.27,203.23,10.32103556]
[1757097104070,7.98821993,203.34,203.12,68.9196]
[1757097104071,18.09730729,203.32,203.25,2.17103556]
[1757097104267,2.17103556,203.31,203.25,2.17103556]
[1757097109481,2.17103556,203.31,203.24,10.32103556]
[1757097109981,2.17103556,203.31,203.26,2.17103556]
[1757097110287,7.66,203.32,203.26,9.81103556]
[1757097111288,13.15430729,203.36,203.28,2.17103556]
[1757097111493,7.11403556,203.35,203.28,2.17103556]
[1757097113094,2.17103556,203.35,203.28,2.17103556]
[1757097113584,7.11403556,203.35,203.28,2.17103556]
[1757097113994,2.17103556,203.35,203.29,7.64]
[1757097114996,7.11403556,203.35,203.29,7.64]
[1757097115191,2.17103556,203.35,203.29,7.64]
[1757097116092,7.11403556,203.35,203.29,7.64]
[1757097116493,2.17103556,203.35,203.29,7.64]
[1757097117296,7.66,203.36,203.31,2.17103556]
[1757097117492,7.66,203.36,203.32,7.64]
[1757097118296,2.17103556,203.38,203.32,7.64]
[1757097119092,0.85628868,203.39,203.31,2.17103556]
[1757097119397,2.17103556,203.37,203.31,2.17103556]
[1757097120300,2.17103556,203.35,203.29,2.17103556]
[1757097120495,9.83103556,203.35,203.29,2.17103556]
[1757097121593,7.66,203.32,203.27,9.81103556]
[1757097121793,7.66,203.32,203.24,7.64]
[1757097121994,2.17103556,203.31,203.24,7.64]
[1757097122199,7.66,203.3,203.24,9.81103556]
[1757097122599,7.11403556,203.33,203.26,9.81103556]
[1757097123090,7.11403556,203.33,203.19,143.24303545]
[1757097123091,7.66,203.32,203.25,2.17103556]
[1757097123297,2.17103556,203.31,203.25,2.17103556]
[1757097123597,2.17103556,203.33,203.26,7.64]
[1757097124497,2.17103556,203.33,203.27,2.17103556]
[1757097124899,7.66,203.35,203.27,2.17103556]
[1757097125093,9.83103556,203.35,203.27,2.17103556]
[1757097125398,14.77403556,203.35,203.27,2.17103556]
[1757097126498,14.77403556,203.35,203.29,2.17103556]
[1757097126700,12.603,203.35,203.26,7.64]
[1757097126900,12.603,203.35,203.29,2.17103556]
[1757097127096,2.17103556,203.37,203.31,2.17103556]
[1757097127501,7.66,203.38,203.3,7.64]
[1757097127702,7.66,203.38,203.32,2.17103556]
[1757097129802,7.66,203.38,203.3,7.64]
[1757097130002,7.66,203.38,203.34,2.17103556]
[1757097130204,7.66,203.38,203.34,9.81103556]
[1757097133209,7.66,203.38,203.34,7.64]
[1757097133508,12.603,203.39,203.34,7.64]
[1757097133708,7.66,203.38,203.34,7.64]
[1757097134310,7.66,203.38,203.35,2.17103556]
[1757097134711,7.66,203.38,203.33,7.64]
[1757097134908,7.66,203.39,203.35,9.81103556]
[1757097135311,7.66,203.42,203.36,7.64]
[1757097135506,7.66,203.36,203.28,7.64]
[1757097136806,7.66,203.36,203.27,3.38842378]
[1757097136807,5.49430729,203.41,203.3,3.38842378]
[1757097137006,7.66,203.42,203.31,7.64]
[1757097137208,7.66,203.42,203.33,3.38842378]
[1757097137403,4.943,203.41,203.34,7.64]
[1757097138012,4.943,203.43,203.34,7.64]
[1757097138212,4.943,203.41,203.34,7.64]
[1757097138413,7.98821993,203.47,203.37,7.39]
[1757097138414,4.943,203.46,203.37,7.39]
[1757097141317,4.943,203.46,203.37,10.77842378]
[1757097141716,4.943,203.44,203.37,10.77842378]
[1757097141905,12.543,203.43,203.37,7.39]
[1757097142109,7.6,203.43,203.33,3.38842378]
[1757097142512,7.6,203.43,203.34,7.39]
[1757097142819,10.98842378,203.43,203.34,7.39]
[1757097143016,4.943,203.42,203.34,7.39]
[1757097143915,7.6,203.43,203.36,3.38842378]
[1757097144313,7.6,203.43,203.37,7.39]
[1757097145319,4.943,203.47,203.37,7.39]
[1757097147715,12.543,203.46,203.37,7.39]
[1757097147915,12.543,203.46,203.36,3.38842378]
[1757097148814,12.543,203.46,203.34,7.39]
[1757097149018,7.6,203.42,203.34,7.39]
[1757097149722,4.943,203.41,203.34,7.39]
[1757097150317,4.943,203.41,203.34,10.77842378]
[1757097150822,4.943,203.41,203.37,3.38842378]
[1757097151023,4.943,203.45,203.37,10.77842378]
[1757097151222,7.6,203.46,203.37,10.77842378]
[1757097152319,4.922,203.45,203.37,10.77842378]
[1757097154323,4.922,203.45,203.38,7.39]
[1757097154926,4.922,203.47,203.4,3.38842378]
[1757097155126,4.922,203.47,203.41,7.39]
[1757097156025,13.95026951,203.49,203.41,7.39]
[1757097156026,4.922,203.48,203.41,7.39]
[1757097158926,4.922,203.48,203.4,3.38842378]
[1757097158927,4.922,203.46,203.31,7.39]
[1757097159127,12.522,203.45,203.35,10.77842378]
[1757097159526,12.522,203.45,203.38,3.38842378]
[1757097159928,12.522,203.45,203.38,10.77842378]
[1757097160328,12.522,203.45,203.38,7.39]
[1757097162034,4.922,203.44,203.38,7.39]
[1757097162424,4.922,203.44,203.38,10.77842378]
[1757097165131,12.522,203.43,203.34,3.38842378]
[1757097165332,7.6,203.42,203.34,7.39]
[1757097165733,4.922,203.41,203.34,7.39]
[1757097167647,4.922,203.44,203.35,7.39]
[1757097168742,5.49430729,203.48,203.38,7.66]
[1757097168946,4.922,203.48,203.4,3.38842378]
[1757097169247,4.922,203.48,203.41,7.66]
[1757097170043,4.922,203.48,203.37,11.04842378]
[1757097170044,12.572,203.47,203.37,11.04842378]
[1757097170246,12.572,203.47,203.37,7.66]
[1757097174248,12.572,203.47,203.38,3.38842378]
[1757097177752,12.572,203.47,203.39,7.66]
[1757097179256,18.06630729,203.47,203.39,7.66]
[1757097181153,18.06630729,203.47,203.41,7.66]
[1757097181355,4.922,203.47,203.41,7.66]
[1757097182059,4.922,203.48,203.41,7.66]
[1757097182655,10.41630729,203.48,203.41,7.66]
[1757097183360,4.922,203.46,203.41,7.66]
[1757097183658,10.41630729,203.46,203.38,7.66]
[1757097183859,4.922,203.46,203.4,3.38842378]
[1757097184060,4.922,203.46,203.4,11.04842378]
[1757097184562,7.65,203.47,203.4,11.04842378]
[1757097184757,12.572,203.47,203.4,11.04842378]
[1757097185157,12.572,203.47,203.4,7.66]
[1757097185361,12.572,203.47,203.4,11.04842378]
[1757097187561,12.572,203.47,203.4,3.38842378]
[1757097187758,4.922,203.44,203.32,7.66]
[1757097187958,7.65,203.42,203.33,3.38842378]
[1757097188159,7.65,203.42,203.34,7.66]
[1757097188559,13.14430729,203.42,203.34,7.66]
[1757097188759,8.31042378,203.43,203.3,3.38842378]
[1757097188760,7.65,203.4,203.3,11.04842378]
[1757097188960,13.14430729,203.4,203.3,11.04842378]
[1757097189263,7.65,203.4,203.3,11.04842378]
[1757097189759,7.65,203.4,203.31,7.66]
[1757097191160,7.65,203.4,203.34,7.66]
[1757097191560,13.80473107,203.43,203.34,7.66]
[1757097191561,4.922,203.43,203.34,7.66]
[1757097191762,4.922,203.43,203.36,3.38842378]
[1757097191961,4.922,203.43,203.37,7.66]
[1757097192568,4.922,203.43,203.28,7.66]
[1757097192769,7.65,203.42,203.32,11.04842378]
[1757097193970,7.65,203.42,203.32,7.66]
[1757097194171,13.14430729,203.42,203.32,7.66]
[1757097194366,7.65,203.4,203.32,7.66]
[1757097194763,15.96042378,203.4,203.32,7.66]
[1757097194968,13.80473107,203.4,203.28,11.04842378]
[1757097195171,13.14430729,203.39,203.28,11.04842378]
[1757097195966,13.14430729,203.39,203.28,3.38842378]
[1757097196168,7.65,203.39,203.29,7.66]
[1757097197567,4.922,203.41,203.37,9.82734001]
[1757097197772,12.572,203.41,203.37,9.82734001]
[1757097197971,2.16734001,203.42,203.38,7.66]
[1757097198472,7.66,203.41,203.37,2.16734001]
[1757097198672,7.66,203.41,203.37,9.71734001]
[1757097198972,20.2436473,203.44,203.38,7.55]
[1757097199168,12.582,203.44,203.39,9.71734001]
[1757097199375,15.3216473,203.45,203.39,9.71734001]
[1757097200772,15.3216473,203.45,203.39,2.16734001]
[1757097200972,2.16734001,203.43,203.37,2.16734001]
[1757097201179,2.16734001,203.41,203.35,9.71734001]
[1757097201573,7.66,203.43,203.22,74.43009444]
[1757097201574,7.66,203.38,203.33,9.71734001]
[1757097202278,9.82734001,203.39,203.33,7.55]
[1757097202477,9.82734001,203.39,203.2,74.43559444]
[1757097202478,2.16734001,203.37,203.31,2.16734001]
[1757097203280,2.16734001,203.37,203.29,7.55]
[1757097203484,7.66,203.39,203.31,2.16734001]
[1757097203682,2.16734001,203.38,203.31,2.16734001]
[1757097204177,7.66,203.39,203.31,2.16734001]
[1757097204478,2.16734001,203.38,203.32,7.55]
[1757097204682,7.66,203.39,203.32,7.55]
[1757097204873,2.16734001,203.38,203.32,7.55]
[1757097205376,2.16734001,203.36,203.31,2.16734001]
[1757097205685,9.82734001,203.36,203.31,2.16734001]
[1757097205883,9.82734001,203.36,203.31,9.71734001]
[1757097206178,2.16734001,203.38,203.32,7.55]
[1757097206383,2.16734001,203.38,203.31,2.16734001]
[1757097206682,7.66,203.35,203.29,2.16734001]
[1757097207086,9.82734001,203.35,203.29,2.16734001]
[1757097207284,9.82734001,203.35,203.28,7.55]
[1757097207582,9.82734001,203.35,203.29,2.16734001]
[1757097208781,9.82734001,203.35,203.28,7.55]
[1757097208782,2.16734001,203.33,203.25,7.55]
[1757097208982,2.16734001,203.33,203.27,2.16734001]
[1757097209886,7.67,203.32,203.25,9.71734001]
[1757097210085,2.16734001,203.31,203.25,9.71734001]
[1757097210384,2.16734001,203.35,203.29,9.71734001]
[1757097210987,2.16734001,203.33,203.2,7.55]
[1757097211184,9.83734001,203.29,203.23,2.16734001]
[1757097211486,2.16734001,203.3,203.24,7.55]
[1757097211687,2.16734001,203.28,203.23,2.16734001]
[1757097211984,7.67,203.27,203.22,7.55]
[1757097212184,9.83734001,203.28,203.22,7.55]
[1757097212586,2.16734001,203.26,203.18,7.55]
[1757097212788,2.16734001,203.26,203.18,9.71734001]
[1757097213886,2.16734001,203.26,203.18,7.55]
[1757097214084,2.16734001,203.2,203.1,7.55]
[1757097214285,2.16734001,203.2,203.12,2.16734001]
[1757097214286,2.16734001,203.18,203.12,2.16734001]
[1757097214590,2.16734001,203.18,203.12,7.55]
[1757097216286,2.16734001,203.19,203.12,7.55]
[1757097216486,2.16734001,203.19,203.13,2.16734001]
[1757097216988,2.16734001,203.19,203.12,7.55]
[1757097217890,7.67,203.24,203.15,2.16734001]
[1757097218089,7.67,203.24,203.06,68.9401]
[1757097218090,9.83734001,203.24,203.17,2.16734001]
[1757097219184,7.67,203.24,203.17,2.16734001]
[1757097219588,9.83734001,203.24,203.17,2.16734001]
[1757097220290,2.16734001,203.24,203.19,2.16734001]
[1757097220596,2.16734001,203.27,203.21,2.16734001]
[1757097220792,2.16734001,203.27,203.2,7.55]
[1757097221597,7.67,203.26,203.2,7.55]
[1757097223598,7.67,203.26,203.21,2.16734001]
[1757097223795,7.67,203.26,203.22,7.55]
[1757097224001,2.16734001,203.29,203.21,9.71734001]
[1757097224294,2.16734001,203.29,203.23,2.16734001]
[1757097225393,7.67,203.3,203.26,7.55]
[1757097225599,2.16734001,203.29,203.22,2.16734001]
[1757097225998,2.16734001,203.27,203.21,7.55]
[1757097226401,2.16734001,203.25,203.19,2.16734001]
[1757097226603,9.83734001,203.25,203.19,2.16734001]
[1757097226796,2.16734001,203.23,203.17,9.71734001]
[1757097227002,2.16734001,203.23,203.17,7.55]
[1757097229105,2.16734001,203.23,203.17,9.71734001]
[1757097229404,2.16734001,203.24,203.17,9.71734001]
[1757097231902,2.16734001,203.22,203.17,7.55]
[1757097232102,9.82734001,203.22,203.15,2.16734001]
[1757097232406,4.922,203.24,203.18,8.13]
[1757097232407,7.08934001,203.24,203.18,8.13]
[1757097233203,9.82734001,203.26,203.19,2.16734001]
[1757097233404,14.74934001,203.26,203.19,2.16734001]
[1757097233906,7.66,203.23,203.19,2.16734001]
[1757097234505,7.66,203.23,203.19,10.29734001]
[1757097234705,2.16734001,203.24,203.2,8.13]
[1757097234999,9.82734001,203.24,203.2,8.13]
[1757097235205,14.74934001,203.24,203.2,8.13]
[1757097235407,2.16734001,203.24,203.2,8.13]
[1757097235607,2.16734001,203.26,203.2,8.13]
[1757097236008,2.16734001,203.26,203.21,2.16734001]
[1757097236306,9.82734001,203.26,203.22,8.13]
[1757097236512,7.66,203.25,203.19,2.16734001]
[1757097237210,7.66,203.23,203.19,10.29734001]
[1757097237912,7.66,203.23,203.12,8.13]
[1757097238113,4.922,203.26,203.11,8.13]
[1757097238114,2.16734001,203.17,203.11,8.13]
[1757097238315,7.66,203.18,203.12,2.16734001]
[1757097238515,2.16734001,203.21,203.16,2.16734001]
[1757097238815,12.582,203.22,203.16,2.16734001]
[1757097239011,2.16734001,203.25,203.18,2.16734001]
[1757097240112,7.66,203.22,203.16,2.16734001]
[1757097240513,2.16734001,203.25,203.19,8.13]
[1757097240714,7.66,203.26,203.2,2.16734001]
[1757097241506,7.66,203.26,203.16,8.13]
[1757097241507,4.922,203.25,203.16,8.13]
[1757097242813,7.66,203.31,203.19,8.13]
[1757097243815,4.922,203.3,203.19,8.13]
[1757097244017,4.922,203.31,203.19,8.13]
[1757097244218,4.922,203.29,203.19,8.13]
[1757097244714,7.66,203.28,203.19,8.13]
[1757097244922,12.582,203.28,203.19,8.13]
[1757097246421,18.00830265,203.28,203.15,8.13]
[1757097246720,12.582,203.23,203.09,8.13]
[1757097249122,7.66,203.21,203.09,8.13]
[1757097249518,7.66,203.18,203.09,8.13]
[1757097250720,7.66,203.18,203.04,5.42630265]
[1757097250721,7.66,203.18,203.05,8.13]
[1757097253523,7.66,203.18,203.06,8.13]
[1757097253721,7.66,203.18,203.08,8.13]
[1757097259135,7.66,203.22,203.13,5.42630265]
[1757097259332,7.66,203.22,203.14,7.98]
[1757097260030,12.582,203.22,203.14,7.98]
[1757097260231,7.66,203.22,203.14,7.98]
[1757097261135,12.582,203.22,203.14,7.98]
[1757097265326,7.66,203.22,203.14,7.98]
[1757097267334,7.66,203.22,203.07,68.9365]
[1757097267335,7.66,203.22,203.08,7.98]
[1757097268730,13.15430729,203.22,203.08,7.98]
[1757097270438,4.922,203.21,203.08,7.98]
[1757097270634,12.592,203.2,203.08,7.98]
[1757097273942,12.592,203.2,203.09,7.98]
[1757097279347,18.08630729,203.2,203.09,7.98]
[1757097279553,7.67,203.18,203.04,8.8208169]
[1757097279748,7.67,203.18,203.05,7.98]
[1757097279749,13.16430729,203.18,203.05,7.98]
[1757097279949,7.67,203.16,203.05,7.98]
[1757097280357,13.16430729,203.16,203.05,7.98]
[1757097281453,5.49430729,203.16,203.05,11.37561559]
[1757097282157,7.67,203.15,203.05,11.37561559]
[1757097282954,7.67,203.15,203.05,7.98]
[1757097283154,7.67,203.13,203.05,7.98]
[1757097284757,7.67,203.13,203.0,3.39561559]
[1757097284758,7.67,203.13,203.06,3.39561559]
[1757097284960,4.922,203.15,203.07,7.98]
[1757097287860,7.67,203.16,203.07,7.98]
[1757097288458,12.592,203.16,203.07,7.98]
[1757097288659,15.98761559,203.16,203.07,7.98]
[1757097289060,7.68,203.14,203.07,7.98]
[1757097289667,8.88992288,203.15,203.03,11.45561559]
[1757097289966,7.68,203.14,203.03,11.45561559]
[1757097291168,5.49430729,203.15,203.03,11.45561559]
[1757097291364,7.68,203.13,203.03,11.45561559]
[1757097291967,8.88992288,203.14,203.03,8.06]
[1757097292266,7.68,203.13,203.03,8.06]
[1757097293965,3.39561559,203.11,203.03,8.06]
[1757097294264,7.68,203.1,203.0,8.06]
[1757097297269,7.68,203.07,203.0,8.06]
[1757097297661,3.39561559,203.05,202.89,8.06]
[1757097297967,7.68,203.04,202.94,8.06]
[1757097298167,7.68,203.01,202.94,8.06]
[1757097299771,11.07561559,202.99,202.89,8.06]
[1757097300375,7.68,202.95,202.84,8.06]
[1757097300865,0.03309653,202.92,202.84,8.06]
[1757097301269,0.03309653,202.92,202.87,8.06]
[1757097301477,0.03309653,202.92,202.8,3.39561559]
[1757097301478,0.03309653,202.92,202.9,8.06]
[1757097301776,5.49430729,203.06,202.9,8.06]
[1757097301777,7.68,203.02,202.9,8.06]
[1757097301968,11.10561559,203.05,202.94,8.06]
[1757097302168,11.10561559,203.05,202.94,11.45561559]
[1757097302569,7.71,203.05,202.95,8.06]
[1757097302969,7.71,203.05,202.97,0.03515535]
[1757097303770,7.71,203.05,202.98,8.06]
[1757097304270,7.71,203.08,202.98,8.06]
[1757097305170,7.71,203.08,203.01,8.06]
[1757097305370,7.71,203.08,202.98,8.06]
[1757097305571,7.71,203.08,202.94,8.06]
[1757097305781,7.71,203.08,203.01,0.0377424]
[1757097305980,4.922,203.07,203.01,0.0377424]
[1757097306271,14.77,203.1,203.01,0.0377424]
[1757097306272,7.71,203.1,203.01,0.0377424]
[1757097306975,4.922,203.09,203.01,0.0377424]
[1757097307775,4.922,203.09,203.02,8.06]
[1757097307972,7.71,203.1,203.02,8.06]
[1757097309081,4.922,203.09,203.02,8.06]
[1757097309281,7.71,203.15,203.02,8.06]
[1757097309773,7.71,203.15,203.06,0.03386098]
[1757097310174,4.922,203.14,203.06,0.03386098]
[1757097310377,7.71,203.13,203.06,0.03386098]
[1757097310780,7.71,203.13,202.95,8.06]
[1757097310980,7.71,203.13,203.07,0.0377769]
[1757097311179,7.71,203.13,203.02,8.06]
[1757097311382,7.71,203.13,203.08,0.03106381]
[1757097311580,7.71,203.14,203.08,0.03106381]
[1757097312683,7.71,203.18,203.08,8.09106381]
[1757097313382,13.20430729,203.18,203.08,8.09106381]
[1757097313678,7.77278,203.25,203.15,8.06]
[1757097313884,7.77278,203.25,203.18,8.83728106]
[1757097314088,7.77278,203.25,203.19,8.06]
[1757097314286,7.77278,203.25,203.19,8.09542325]
[1757097315386,7.77278,203.25,203.19,0.03542325]
[1757097315779,7.77278,203.25,203.19,8.09542325]
[1757097316784,7.77278,203.25,203.19,0.03542325]
[1757097317385,15.48278,203.25,203.19,0.03542325]
[1757097317886,7.77278,203.25,203.2,8.06]
[1757097318094,7.77278,203.25,203.19,8.09542325]
[1757097318891,7.77278,203.25,203.19,0.03542325]
[1757097319988,4.922,203.24,203.19,0.03542325]
[1757097320388,7.47,203.24,203.19,0.03542325]
[1757097320590,7.77278,203.25,203.19,0.03542325]
[1757097321289,15.24278,203.25,203.19,0.03542325]
[1757097324787,7.47,203.38,203.24,5.42733336]